bitfinex-derivatives/quotes_BNBF0:USTF0_20250708
["timestamp","ask_amount","ask_price","bid_price","bid_amount"]
[1751992323432,1.702718,659.21,658.55,2.449]
[1751992325230,1.702718,659.22,658.55,2.449]
[1751992325435,1.702718,659.22,658.28,0.26401539]
[1751992325829,1.702718,659.2,658.28,0.26401539]
[1751992326938,1.702718,659.12,658.44,2.26410783]
[1751992327137,1.702718,659.07,658.4,2.26410783]
[1751992327336,1.702718,659.08,658.39,2.26410783]
[1751992328235,1.702718,659.08,658.4,1.924]
[1751992328837,1.702718,659.09,658.4,4.18810783]
[1751992329539,1.702718,659.1,658.4,1.924]
[1751992329838,1.702718,659.09,658.4,1.924]
[1751992330039,1.702718,659.08,658.42,2.26410783]
[1751992330237,1.702718,659.09,658.42,2.26410783]
[1751992330637,1.702718,659.08,658.44,2.26410783]
[1751992331742,1.702718,659.08,658.43,2.26410783]
[1751992331941,1.702718,659.14,658.49,2.26410783]
[1751992332242,1.702718,659.15,658.49,2.26410783]
[1751992332937,1.702718,659.16,658.49,2.26410783]
[1751992333140,3.40727637,659.4,658.4,1.924]
[1751992333141,1.702718,659.19,658.53,2.26410783]
[1751992335641,1.702718,659.19,658.54,2.26410783]
[1751992336943,1.702718,659.19,658.53,2.26410783]
[1751992339345,1.702718,659.22,658.58,2.26410783]
[1751992340747,1.702718,659.22,658.59,2.26410783]
[1751992341952,1.702718,659.18,658.55,2.26410783]
[1751992343154,1.702718,659.18,658.56,2.26410783]
[1751992343551,1.702718,659.18,658.55,2.26410783]
[1751992344155,1.702718,659.18,658.56,2.26410783]
[1751992345451,1.702718,659.18,658.57,2.345]
[1751992347958,1.702718,659.18,658.57,4.60910783]
[1751992348853,1.702718,659.18,658.57,2.345]
[1751992349257,1.702718,659.17,658.57,4.60910783]
[1751992355261,2.27151758,659.28,658.57,4.60910783]
[1751992355458,1.70169821,659.17,658.57,4.60910783]
[1751992356460,1.70169821,659.17,658.57,2.345]
[1751992356661,1.70169821,659.17,658.57,4.60910783]
[1751992356959,1.70169821,659.17,658.57,2.345]
[1751992357662,1.70169821,659.18,658.57,2.345]
[1751992361263,1.70169821,659.15,658.57,2.345]
[1751992361461,1.70169821,659.1,658.57,2.345]
[1751992361962,1.70169821,659.16,658.57,2.345]
[1751992362862,1.70169821,659.15,658.57,2.345]
[1751992363166,1.70169821,659.17,658.57,2.345]
[1751992363366,1.70169821,659.18,658.57,2.345]
[1751992367668,1.70169821,659.16,658.57,2.345]
[1751992368971,3.40727637,659.47,658.57,2.345]
[1751992368972,1.70169821,659.12,658.57,2.345]
[1751992369168,1.70169821,659.1,658.57,2.345]
[1751992370269,2.27151758,659.26,658.57,2.345]
[1751992370270,1.70169821,659.11,658.57,2.345]
[1751992371168,1.70169821,659.1,658.57,2.345]
[1751992371365,1.70169821,659.11,658.57,2.345]
[1751992371666,1.70169821,659.09,658.57,2.345]
[1751992371865,1.70169821,658.99,658.57,2.345]
[1751992372067,1.70169821,658.98,658.57,2.345]
[1751992373263,1.70169821,658.99,658.57,2.345]
[1751992374272,1.70169821,659.0,658.57,2.345]
[1751992374771,1.70169821,658.83,658.57,2.345]
[1751992374969,1.70169821,658.74,658.57,2.345]
[1751992375472,1.70169821,658.75,658.57,2.345]
[1751992375672,1.69983238,658.76,658.57,2.345]
[1751992376370,1.69983238,658.77,658.57,2.345]
[1751992376872,1.69983238,658.78,658.57,2.345]
[1751992377275,1.69983238,658.85,658.57,2.345]
[1751992377577,0.2639503,659.77,658.57,2.345]
[1751992377578,1.69983238,658.84,658.57,2.345]
[1751992378477,1.69983238,658.85,658.28,0.26401539]
[1751992381282,1.69983238,658.85,658.29,2.92]
[1751992381583,1.69983238,658.84,658.29,2.92]
[1751992383480,1.69983238,658.85,658.29,2.92]
[1751992383682,1.69983238,658.84,658.29,2.92]
[1751992384081,1.69983238,658.83,658.29,2.92]
[1751992384480,1.69983238,658.84,658.29,2.92]
[1751992385382,1.69983238,658.85,658.29,2.92]
[1751992385886,1.69983238,658.82,658.29,2.92]
[1751992386283,1.69983238,658.8,658.29,2.92]
[1751992386686,1.69983238,658.81,658.29,2.92]
[1751992387479,1.69983238,658.8,658.29,2.92]
[1751992387682,1.69983238,658.79,658.29,2.92]
[1751992390394,1.69983238,658.8,658.29,2.92]
[1751992391097,1.69983238,658.79,658.29,2.92]
[1751992391298,1.69983238,658.77,658.29,2.92]
[1751992391698,1.69983238,658.78,658.29,2.92]
[1751992392101,1.69983238,658.74,658.29,2.92]
[1751992392998,1.69983238,658.79,658.29,2.92]
[1751992393602,1.69983238,658.73,658.29,2.92]
[1751992396201,1.69983238,658.74,658.29,2.92]
[1751992400002,1.69983238,658.73,658.29,2.92]
[1751992400405,1.69983238,658.74,658.29,2.92]
[1751992402405,1.69983238,658.73,658.29,2.92]
[1751992402902,1.69983238,658.7,658.29,2.92]
[1751992403100,1.69983238,658.66,658.29,2.92]
[1751992404209,1.69983238,658.64,658.29,2.92]
[1751992404606,1.69983238,658.63,658.29,2.92]
[1751992405411,1.69983238,658.64,658.29,2.92]
[1751992406007,1.69983238,658.66,658.29,2.92]
[1751992407814,1.69983238,658.65,658.29,2.92]
[1751992408312,1.69983238,658.66,658.29,2.92]
[1751992410314,1.69983238,658.67,658.29,2.92]
[1751992410517,1.69983238,658.7,658.29,2.92]
[1751992410717,1.69983238,658.71,658.29,2.92]
[1751992411517,1.69983238,658.72,658.29,2.92]
[1751992414418,1.69983238,658.72,658.28,0.26401539]
[1751992415315,1.69983238,658.71,658.28,0.26401539]
[1751992418121,1.69983238,658.71,658.29,2.331]
[1751992419620,1.69983238,658.7,658.29,2.331]
[1751992419822,1.69983238,658.71,658.29,2.331]
[1751992420118,1.69983238,658.7,658.29,2.331]
[1751992421225,1.69983238,658.68,658.29,2.331]
[1751992421424,1.69983238,658.67,658.29,2.331]
[1751992421920,1.69983238,658.66,658.29,2.331]
[1751992424326,1.69983238,658.65,658.29,2.331]
[1751992424621,1.69983238,658.66,658.29,2.331]
[1751992425120,1.69983238,658.65,658.29,2.331]
[1751992427624,1.69983238,658.64,658.29,2.331]
[1751992427825,1.69983238,658.61,658.29,2.331]
[1751992429221,1.69983238,658.6,658.29,2.331]
[1751992430122,1.69983238,658.59,658.29,2.331]
[1751992431327,1.69983238,658.56,658.29,2.331]
[1751992432325,1.69983238,658.55,658.29,2.331]
[1751992433529,1.69983238,658.54,658.29,2.331]
[1751992434330,1.69983238,658.53,658.29,2.331]
[1751992435225,1.69983238,658.49,658.29,2.331]
[1751992436929,1.69983238,658.5,658.29,2.331]
[1751992438425,1.69983238,658.49,658.29,2.331]
[1751992439430,1.69983238,658.5,658.29,2.331]
[1751992440231,1.69983238,658.57,658.29,2.331]
[1751992440429,1.69983238,658.53,658.29,2.331]
[1751992443030,1.69983238,658.54,658.29,2.331]
[1751992443430,1.69983238,658.53,658.29,2.331]
[1751992445737,1.69983238,658.52,658.29,2.331]
[1751992448134,1.69983238,658.45,658.29,2.331]
[1751992448434,1.69983238,658.44,658.29,2.331]
[1751992451132,1.69983238,658.41,658.29,2.331]
[1751992451534,1.69983238,658.42,658.29,2.331]
[1751992451734,1.69983238,658.39,658.29,2.331]
[1751992451935,1.69983238,658.38,658.29,2.331]
[1751992452632,1.69983238,658.35,658.29,2.331]
[1751992453238,1.69983238,658.36,658.29,2.331]
[1751992454340,1.69983238,658.37,658.29,2.331]
[1751992457444,1.69983238,658.38,658.29,2.331]
[1751992458445,1.69983238,658.37,658.29,2.331]
[1751992458944,1.69983238,658.38,658.29,2.331]
[1751992460142,1.69983238,658.36,658.29,2.331]
[1751992461345,1.69983238,658.37,658.29,2.331]
[1751992466246,1.69983238,658.38,658.29,2.331]
[1751992468152,1.69983238,658.42,658.29,2.331]
[1751992468351,1.69983238,658.34,658.29,2.331]
[1751992469045,1.69983238,658.33,658.29,2.331]
[1751992472349,1.69983238,658.32,658.29,2.331]
[1751992472650,2.27151758,658.41,658.29,2.331]
[1751992473257,2.27151758,658.38,658.29,2.331]
[1751992474358,2.27151758,658.39,658.29,2.331]
[1751992474657,2.27151758,658.38,658.29,2.331]
[1751992475358,2.27151758,658.39,658.29,2.331]
[1751992475758,2.27151758,658.36,658.29,2.331]
[1751992477262,2.27151758,658.36,657.94,0.26431317]
[1751992477561,1.69916997,658.22,657.94,0.26431317]
[1751992478163,1.69916997,658.21,657.94,0.26431317]
[1751992478859,1.69916997,658.28,657.94,0.26431317]
[1751992480061,1.69916997,658.28,657.95,2.721]
[1751992481967,1.69916997,658.33,657.95,2.721]
[1751992484465,1.69916997,658.32,657.95,2.721]
[1751992484766,1.69916997,658.33,657.95,2.721]
[1751992486063,0.26427302,658.72,657.95,2.721]
[1751992486064,1.69916997,658.31,657.95,2.721]
[1751992491673,1.69916997,658.28,657.95,2.721]
[1751992491873,1.69916997,658.23,657.95,2.721]
[1751992492174,1.69916997,658.24,657.95,2.721]
[1751992492375,1.69916997,658.23,657.95,2.721]
[1751992493975,1.69916997,658.24,657.95,2.721]
[1751992497177,1.69916997,658.23,657.95,2.721]
[1751992497976,1.69916997,658.31,657.95,2.721]
[1751992499974,1.69916997,658.32,657.95,2.721]
[1751992500374,1.69916997,658.28,657.95,2.721]
[1751992500577,1.69916997,658.24,657.95,2.721]
[1751992500772,1.69916997,658.22,657.95,2.721]
[1751992504673,1.69916997,658.19,657.95,2.721]
[1751992506175,1.69916997,658.2,657.95,2.721]
[1751992506478,1.69916997,658.18,657.95,2.721]
[1751992506679,1.69916997,658.17,657.95,2.721]
[1751992507373,1.70223756,658.17,657.95,2.721]
[1751992507676,1.70223756,658.16,657.95,2.721]
[1751992508273,1.70223756,658.17,657.95,2.721]
[1751992508477,1.70223756,658.16,657.95,2.721]
[1751992510279,1.70223756,658.13,657.95,2.721]
[1751992511977,1.70223756,658.12,657.95,2.721]
[1751992512176,1.70223756,658.13,657.95,2.721]
[1751992512480,1.70223756,658.09,657.95,2.721]
[1751992513081,1.70223756,658.1,657.95,2.721]
[1751992513280,1.70223756,658.09,657.95,2.721]
[1751992514181,1.70223756,658.06,657.95,2.721]
[1751992516178,1.70223756,658.05,657.95,2.721]
[1751992516984,0.26427302,658.72,657.95,2.721]
[1751992516985,1.70223756,658.07,657.95,2.721]
[1751992517184,1.70223756,658.08,657.95,2.721]
[1751992517783,1.70223756,658.07,657.95,2.721]
[1751992518182,1.70223756,658.08,657.95,2.721]
[1751992518481,1.70223756,658.07,657.95,2.721]
[1751992520786,1.70223756,658.08,657.95,2.721]
[1751992522383,1.70223756,658.07,657.95,2.721]
[1751992523382,1.70223756,658.08,657.95,2.721]
[1751992524389,1.70251678,658.08,657.95,2.721]
[1751992525486,1.70251678,658.07,657.95,2.721]
[1751992526294,1.70251678,658.08,657.95,2.721]
[1751992526792,1.70251678,658.05,657.95,2.721]
[1751992526986,1.70251678,658.05,657.7,0.26442463]
[1751992527892,2.27151758,658.19,657.7,0.26442463]
[1751992528191,1.70300768,658.05,657.7,0.26442463]
[1751992528591,1.70300768,658.06,657.7,0.26442463]
[1751992529893,1.70300768,658.06,657.71,2.553]
[1751992531902,1.70300768,658.07,657.71,2.553]
[1751992533198,1.70300768,658.06,657.71,2.553]
[1751992534399,1.70300768,658.05,657.71,2.553]
[1751992535305,1.70300768,658.06,657.71,2.553]
[1751992536005,1.70300768,658.05,657.71,2.553]
[1751992536509,1.70300768,658.06,657.71,2.553]
[1751992537008,1.70300768,658.05,657.71,2.553]
[1751992539712,1.70300768,658.0,657.71,2.553]
[1751992540008,1.70300768,658.01,657.71,2.553]
[1751992540208,1.70300768,657.98,657.71,2.553]
[1751992540407,1.70300768,657.96,657.71,2.553]
[1751992541813,1.70300768,657.91,657.71,2.553]
[1751992543408,1.70300768,657.93,657.71,2.553]
[1751992546123,1.70300768,657.9,657.71,2.553]
[1751992546926,1.70300768,657.89,657.71,2.553]
[1751992547518,0.26427302,658.72,657.71,2.553]
[1751992547519,1.70300768,657.87,657.71,2.553]
[1751992551326,5.67887052,658.66,657.71,2.553]
[1751992551327,1.70300768,657.84,657.71,2.553]
[1751992551527,3.40727637,658.11,657.71,2.553]
[1751992551528,1.70300768,657.83,657.71,2.553]
[1751992551723,1.70300768,657.78,657.71,2.553]
[1751992551922,1.70300768,657.79,657.71,2.553]
[1751992552827,1.70300768,657.76,657.71,2.553]
[1751992553127,1.70300768,657.77,657.71,2.553]
[1751992554126,1.70300768,657.76,657.71,2.553]
[1751992554423,1.70300768,657.8,657.71,2.553]
[1751992555225,1.70300768,657.86,657.71,2.553]
[1751992557232,1.70300768,657.92,657.71,2.553]
[1751992558727,1.70300768,657.93,657.71,2.553]
[1751992559528,1.70300768,657.92,657.71,2.553]
[1751992562730,1.70300768,657.91,657.71,2.553]
[1751992563634,1.70300768,657.9,657.71,2.553]
[1751992567937,1.70300768,657.91,657.71,2.553]
[1751992568533,1.70300768,657.9,657.71,2.553]
[1751992569037,1.70300768,657.91,657.71,2.553]
[1751992569434,1.70300768,657.9,657.71,2.553]
[1751992577448,1.70300768,657.96,657.71,2.553]
[1751992579347,1.70300768,657.97,657.71,2.553]
[1751992583456,1.70246347,657.97,657.71,2.553]
[1751992585159,1.70246347,657.96,657.39,0.26452412]
[1751992586962,1.70246347,657.98,657.39,0.26452412]
[1751992587262,1.70246347,657.97,657.39,0.26452412]
[1751992588359,1.70246347,657.97,657.4,2.606]
[1751992589057,3.40727637,658.21,657.4,2.606]
[1751992589058,1.70246347,657.98,657.4,2.606]
[1751992589258,2.27151758,658.12,657.4,2.606]
[1751992589458,1.70248418,657.98,657.4,2.606]
[1751992589860,1.70248418,657.92,657.4,2.606]
[1751992593167,1.70248418,657.91,657.4,2.606]
[1751992596067,1.70248418,657.89,657.4,2.606]
[1751992596370,1.70248418,657.87,657.4,2.606]
[1751992596969,1.70248418,657.9,657.4,2.606]
[1751992597169,1.70248418,657.89,657.4,2.606]
[1751992597866,1.70248418,657.9,657.4,2.606]
[1751992598265,1.70248418,657.89,657.4,2.606]
[1751992598966,2.27151758,658.03,657.4,2.606]
[1751992598967,1.70248418,657.9,657.4,2.606]
[1751992599170,1.70248418,657.89,657.4,2.606]
[1751992601967,1.70248418,657.95,657.4,2.606]
[1751992603472,1.70248418,657.94,657.4,2.606]
[1751992604570,1.70248418,657.95,657.39,0.26452412]
[1751992604769,1.70248418,658.04,657.39,0.26452412]
[1751992605470,0.26427302,658.72,657.39,0.26452412]
[1751992605471,1.70248418,658.05,657.39,0.26452412]
[1751992605771,1.70248418,658.13,657.39,0.26452412]
[1751992606474,1.70248418,658.14,657.39,0.26452412]
[1751992607275,1.70248418,658.13,657.4,2.417]
[1751992607574,1.70248418,658.14,657.4,2.417]
[1751992609477,1.70248418,658.15,657.4,2.417]
[1751992609977,1.70248418,658.12,657.4,4.68110783]
[1751992610376,1.70248418,658.12,657.4,2.417]
[1751992612079,1.70248418,658.06,657.4,2.417]
[1751992613280,1.70248418,658.05,657.4,2.417]
[1751992614784,1.70248418,658.03,657.4,2.417]
[1751992615382,1.70248418,658.01,657.41,2.26410783]
[1751992618385,1.70248418,658.02,657.41,2.26410783]
[1751992618682,1.70248418,658.01,657.41,2.26410783]
[1751992619381,1.70248418,658.01,657.4,4.68110783]
[1751992620185,1.70248418,658.01,657.41,2.26410783]
[1751992621482,1.70248418,658.02,657.41,2.26410783]
[1751992621986,1.70248418,658.04,657.43,2.26410783]
[1751992624486,1.70248418,658.05,657.43,2.26410783]
[1751992625989,1.70248418,658.09,657.4,2.417]
[1751992632194,1.70248418,658.14,657.4,2.417]
[1751992634291,1.70248418,658.13,657.4,2.417]
[1751992634490,1.70248418,658.12,657.4,2.417]
[1751992634690,1.70248418,658.1,657.4,2.417]
[1751992635694,1.70248418,658.09,657.4,2.417]
[1751992636395,1.70248418,658.1,657.4,2.417]
[1751992638899,1.70248418,658.12,657.4,2.417]
[1751992639497,1.70248418,658.11,657.4,2.417]
[1751992641495,1.70248418,658.12,657.4,2.417]
[1751992641796,1.70248418,658.11,657.4,2.417]
[1751992642097,1.70248418,658.16,657.4,2.417]
[1751992642296,1.70248418,658.21,657.41,2.26410783]
[1751992643405,1.70248418,658.21,657.42,2.26410783]
[1751992645405,1.70248418,658.22,657.42,2.26410783]
[1751992647402,1.70248418,658.22,657.41,2.26410783]
[1751992648409,1.70248418,658.22,657.42,2.26410783]
[1751992648912,1.70248418,658.19,657.49,2.26410783]
[1751992649806,1.70248418,658.19,657.5,1.777]
[1751992651407,1.70248418,658.17,657.52,2.26410783]
[1751992652110,1.70248418,658.07,657.5,1.777]
[1751992652412,1.70248418,658.06,657.5,1.777]
[1751992654408,1.70248418,658.05,657.5,1.777]
[1751992656912,1.70248418,658.07,657.5,1.777]
[1751992657411,1.70248418,658.06,657.5,1.777]
[1751992657811,1.70248418,658.05,657.5,1.777]
[1751992658010,1.70248418,658.04,657.5,1.777]
[1751992658210,1.70248418,658.05,657.5,1.777]
[1751992658407,1.70248418,658.04,657.5,1.777]
[1751992658813,2.27151758,658.17,657.5,1.777]
[1751992659011,1.70516366,658.04,657.5,1.777]
[1751992659412,1.70516366,658.0,657.5,1.777]
[1751992659909,1.70516366,657.99,657.5,1.777]
[1751992660407,1.70516366,657.98,657.5,1.777]
[1751992660607,1.70516366,657.97,657.5,1.777]
[1751992660807,1.70516366,657.96,657.5,1.777]
[1751992662009,1.70516366,657.99,657.5,1.777]
[1751992662412,1.70516366,657.98,657.5,1.777]
[1751992663513,1.70516366,657.97,657.5,1.777]
[1751992664815,1.70694042,657.97,657.5,1.777]
[1751992665417,1.70694042,657.96,657.5,1.777]
[1751992667315,1.70694042,657.97,657.5,1.777]
[1751992667517,1.70694042,657.96,657.5,1.777]
[1751992668321,1.70694042,657.95,657.5,1.777]
[1751992668921,1.70694042,657.98,657.5,1.777]
[1751992669926,1.70694042,657.99,657.5,1.777]
[1751992670224,1.70694042,658.02,657.51,2.26410783]
[1751992670919,1.70694042,658.02,657.5,4.04110783]
[1751992671120,1.70694042,658.02,657.51,2.26410783]
[1751992671827,1.70694042,658.02,657.5,4.04110783]
[1751992672021,1.70694042,658.01,657.5,1.777]
[1751992672627,1.70694042,658.02,657.5,1.777]
[1751992676929,1.70694042,658.05,657.5,1.777]
[1751992677129,1.70694042,658.11,657.5,1.777]
[1751992678428,1.70694042,658.12,657.5,1.777]
[1751992678627,0.26445176,658.46,657.5,1.777]
[1751992678628,1.70694042,658.11,657.5,1.777]
[1751992679327,0.26445176,658.46,657.5,1.777]
[1751992679328,1.70694042,658.1,657.5,1.777]
[1751992682735,1.70694042,658.1,657.47,0.26447688]
[1751992684836,1.70694042,658.14,657.49,2.26410783]
[1751992685834,1.70694042,658.14,657.5,2.867]
[1751992686236,1.70694042,658.13,657.51,2.26410783]
[1751992686532,1.70694042,658.14,657.51,2.26410783]
[1751992686832,1.70694042,658.12,657.55,2.26410783]
[1751992689733,1.70694042,658.14,657.5,5.13110783]
[1751992690434,1.70694042,658.15,657.5,5.13110783]
[1751992690839,1.70694042,658.15,657.5,2.867]
[1751992691138,1.70694042,658.15,657.5,5.13110783]
[1751992692040,0.26445176,658.46,657.5,5.13110783]
[1751992692041,1.70694042,658.21,657.56,2.26410783]
[1751992693343,1.70694042,658.21,657.55,2.26410783]
[1751992694039,1.70694042,658.21,657.56,2.26410783]
[1751992694543,1.70694042,658.22,657.56,2.26410783]
[1751992695843,1.70694042,658.22,657.57,2.26410783]
[1751992697148,1.70694042,658.24,657.56,2.26410783]
[1751992697442,1.70694042,658.31,657.61,2.26410783]
[1751992698347,1.70694042,658.31,657.6,2.26410783]
[1751992699349,1.70694042,658.32,657.6,2.26410783]
[1751992699549,1.70694042,658.31,657.63,2.26410783]
[1751992700447,1.70694042,658.31,657.62,2.26410783]
[1751992700848,1.70694042,658.3,657.63,2.26410783]
[1751992701051,1.70694042,658.3,657.64,2.26410783]
[1751992701348,1.70694042,658.31,657.62,2.26410783]
[1751992701548,1.70694042,658.28,657.59,2.26410783]
[1751992702052,1.70694042,658.22,657.53,2.26410783]
[1751992702250,1.70694042,658.21,657.52,2.26410783]
[1751992703348,1.70694042,658.21,657.51,2.26410783]
[1751992705353,1.70694042,658.22,657.51,2.26410783]
[1751992705851,1.70694042,658.23,657.5,2.867]
[1751992706155,1.70694042,658.22,657.5,2.867]
[1751992706450,1.70694042,658.24,657.5,2.867]
[1751992707352,1.70694042,658.27,657.5,2.867]
[1751992708055,1.70694042,658.3,657.5,5.13110783]
[1751992708557,1.70694042,658.33,657.5,2.867]
[1751992710363,1.70694042,658.36,657.5,5.13110783]
[1751992711157,1.70694042,658.36,657.54,2.26410783]
[1751992711360,1.70694042,658.36,657.53,2.26410783]
[1751992711962,1.70694042,658.39,657.56,2.26410783]
[1751992712261,1.70694042,658.38,657.58,2.26410783]
[1751992712461,1.70694042,658.38,657.57,2.26410783]
[1751992713058,1.70694042,658.43,657.62,2.26410783]
[1751992713457,1.70694042,658.43,657.61,2.26410783]
[1751992714260,1.70694042,658.43,657.6,2.26410783]
[1751992715364,1.70694042,658.43,657.59,2.26410783]
[1751992716262,1.70694042,658.43,657.58,2.26410783]
[1751992716566,1.70007443,658.43,657.58,2.26410783]
[1751992717063,0.26438345,658.65,657.5,2.867]
[1751992717064,1.70007443,658.44,657.56,2.26410783]
[1751992717468,1.70007443,658.44,657.55,2.26410783]
[1751992718365,1.70007443,658.43,657.58,2.26410783]
[1751992719169,1.70007443,658.42,657.59,2.26410783]
[1751992719367,1.70007443,658.43,657.58,2.26410783]
[1751992719570,1.70007443,658.42,657.59,2.26410783]
[1751992721271,1.70007443,658.42,657.55,2.26410783]
[1751992721772,1.70007443,658.42,657.56,2.26410783]
[1751992721973,1.70007443,658.4,657.53,2.26410783]
[1751992722369,2.27151758,658.53,657.53,2.26410783]
[1751992722370,1.70007443,658.39,657.53,2.26410783]
[1751992722673,1.70007443,658.36,657.5,5.13110783]
[1751992724473,1.70007443,658.36,657.51,2.26410783]
[1751992724671,1.70007443,658.35,657.51,2.26410783]
[1751992724970,1.70007443,658.35,657.5,5.13110783]
[1751992725372,1.70007443,658.35,657.51,2.26410783]
[1751992726175,1.70007443,658.35,657.53,2.26410783]
[1751992726376,1.70007443,658.34,657.54,2.26410783]
[1751992726672,1.70007443,658.28,657.5,2.867]
[1751992727881,1.70007443,658.26,657.5,2.867]
[1751992728082,1.70007443,658.27,657.5,2.867]
[1751992728581,1.70007443,658.26,657.5,2.867]
[1751992731180,1.70007443,658.25,657.51,2.26410783]
[1751992731380,1.70007443,658.25,657.52,2.26410783]
[1751992731680,1.70007443,658.24,657.53,2.26410783]
[1751992732079,1.70007443,658.36,657.64,2.26410783]
[1751992732478,1.70007443,658.35,657.65,2.26410783]
[1751992733179,1.70007443,658.36,657.63,2.26410783]
[1751992734084,1.70007443,658.38,657.58,2.26410783]
[1751992734483,1.70007443,658.38,657.59,2.26410783]
[1751992734885,1.70007443,658.37,657.59,2.26410783]
[1751992735282,1.70007443,658.37,657.6,2.26410783]
[1751992735888,1.70007443,658.37,657.61,4.26510783]
[1751992736084,0.26438345,658.65,657.61,4.26510783]
[1751992736085,1.70007443,658.35,657.61,2.001]
[1751992736289,1.70007443,658.34,657.61,2.001]
[1751992737189,1.70007443,658.35,657.61,2.001]
[1751992737489,1.70007443,658.34,657.61,2.001]
[1751992742090,1.70007443,658.25,657.61,2.001]
[1751992742390,1.70007443,658.24,657.61,2.001]
[1751992742593,1.70007443,658.22,657.61,2.001]
[1751992743399,1.70007443,658.21,657.61,2.001]
[1751992744000,1.70007443,658.2,657.61,2.001]
[1751992745402,1.70007443,658.19,657.61,2.001]
[1751992746196,1.70007443,658.2,657.61,2.001]
[1751992746898,1.70007443,658.21,657.61,2.001]
[1751992747803,1.70007443,658.2,657.61,2.001]
[1751992748600,1.70007443,658.22,657.61,2.001]
[1751992749199,1.70007443,658.21,657.61,2.001]
[1751992749400,0.26438345,658.65,657.61,2.001]
[1751992749401,1.70007443,658.22,657.61,2.001]
[1751992749900,1.70007443,658.21,657.61,2.001]
[1751992751502,1.70007443,658.22,657.61,2.001]
[1751992752202,1.70007443,658.25,657.61,2.001]
[1751992753202,1.70007443,658.26,657.61,2.001]
[1751992753403,1.70007443,658.25,657.61,2.001]
[1751992756712,1.70007443,658.24,657.61,2.001]
[1751992757709,1.70007443,658.25,657.61,2.001]
[1751992759909,1.70007443,658.25,657.53,2.26410783]
[1751992760314,1.70007443,658.25,657.54,2.26410783]
[1751992760516,1.70007443,658.25,657.53,2.26410783]
[1751992761415,2.27151758,658.38,657.47,0.26447688]
[1751992761416,1.70007443,658.24,657.56,2.26410783]
[1751992761917,1.70007443,658.24,657.47,0.26447688]
[1751992761918,1.70007443,658.25,657.54,2.26410783]
[1751992762217,1.70007443,658.22,657.51,2.26410783]
[1751992762812,1.70007443,658.22,657.48,2.236]
[1751992762813,1.70007443,658.22,657.52,2.26410783]
[1751992764817,1.70007443,658.21,657.53,2.26410783]
[1751992765717,1.70007443,658.2,657.52,2.26410783]
[1751992767319,1.70007443,658.21,657.52,2.26410783]
[1751992767619,1.70007443,658.19,657.54,2.26410783]
[1751992769318,1.70007443,658.19,657.55,2.26410783]
[1751992770122,1.70007443,658.19,657.54,2.26410783]
[1751992771423,1.70007443,658.19,657.55,2.26410783]
[1751992771621,1.70007443,658.18,657.57,2.26410783]
[1751992772125,1.70007443,658.19,657.58,2.26410783]
[1751992772322,1.70007443,658.19,657.59,2.26410783]
[1751992774326,1.70007443,658.18,657.59,2.26410783]
[1751992775426,1.70007443,658.18,657.6,2.26410783]
[1751992776929,1.70007443,658.2,657.54,2.26410783]
[1751992777125,1.70007443,658.22,657.55,2.26410783]
[1751992777425,1.70007443,658.22,657.56,2.26410783]
[1751992777624,1.70007443,658.22,657.55,2.26410783]
[1751992778328,1.70007443,658.21,657.56,2.26410783]
[1751992778824,1.70007443,658.21,657.57,2.136]
[1751992780230,1.70007443,658.21,657.57,4.40010783]
[1751992780428,1.70007443,658.2,657.57,4.40010783]
[1751992780629,1.70007443,658.21,657.58,2.26410783]
[1751992781330,1.70007443,658.2,657.58,2.26410783]
[1751992781633,1.70007443,658.2,657.59,2.26410783]
[1751992782131,1.70007443,658.25,657.63,2.26410783]
[1751992782630,1.70007443,658.24,657.63,2.26410783]
[1751992783335,1.70007443,658.24,657.64,2.26410783]
[1751992784430,1.70007443,658.24,657.57,2.136]
[1751992784431,1.70007443,658.23,657.65,2.26410783]
[1751992785835,1.70007443,658.22,657.66,2.26410783]
[1751992786436,1.70007443,658.22,657.67,2.26410783]